[Event "Jeux du Barreau 2019"]
[Site "Paris, France"]
[Date "2019.07.10"]
[Round "3.5"]
[White "Clair, Michael"]
[Black "Constant, Arnaud"]
[Result "1-0"]
[TimeControl "15+3"]
[WhiteElo "1726"]
[BlackElo "1399"]

1. e4 {[%clk 00:15:02]} {[%emt 00:00:03]} e5 {[%clk 00:15:05]} {[%emt
00:00:02]} 2. Nf3 {[%clk 00:14:57]} {[%emt 00:00:07]} Nc6 {[%clk 00:15:06]}
{[%emt 00:00:03]} 3. Bb5 {[%clk 00:14:53]} {[%emt 00:00:07]} Nf6 {[%clk
00:15:03]} {[%emt 00:00:05]} 4. O-O {[%clk 00:14:50]} {[%emt 00:00:06]} Bc5
{[%clk 00:14:57]} {[%emt 00:00:10]} 5. Re1 {[%clk 00:11:50]} {[%emt 00:03:02]}
O-O {[%clk 00:14:50]} {[%emt 00:00:11]} 6. c3 {[%clk 00:11:25]} {[%emt
00:00:28]} d6 {[%clk 00:14:49]} {[%emt 00:00:04]} 7. d4 {[%clk 00:11:11]}
{[%emt 00:00:16]} Bb6 {[%clk 00:13:08]} {[%emt 00:01:44]} 8. h3 {[%clk
00:10:25]} {[%emt 00:00:49]} Re8 {[%clk 00:12:54]} {[%emt 00:00:17]} 9. Bxc6
{[%clk 00:09:50]} {[%emt 00:00:38]} bxc6 {[%clk 00:12:52]} {[%emt 00:00:06]} 10.
dxe5 {[%clk 00:09:45]} {[%emt 00:00:07]} dxe5 {[%clk 00:12:23]} {[%emt
00:00:32]} 11. Qxd8 {[%clk 00:09:43]} {[%emt 00:00:05]} Rxd8 {[%clk 00:12:24]}
{[%emt 00:00:02]} 12. Nxe5 {[%clk 00:09:36]} {[%emt 00:00:10]} Bb7 {[%clk
00:11:57]} {[%emt 00:00:32]} 13. Bg5 {[%clk 00:09:16]} {[%emt 00:00:22]} Rd6
{[%clk 00:10:46]} {[%emt 00:01:15]} 14. Na3 {[%clk 00:08:53]} {[%emt 00:00:25]}
Re8 {[%clk 00:10:05]} {[%emt 00:00:43]} 15. Nac4 {[%clk 00:07:54]} {[%emt
00:01:02]} Rde6 {[%clk 00:08:43]} {[%emt 00:01:26]} 16. Bxf6 {[%clk 00:06:18]}
{[%emt 00:01:39]} Rxf6 {[%clk 00:08:29]} {[%emt 00:00:16]} 17. Nd7 {[%clk
00:05:39]} {[%emt 00:00:42]} Rf4 {[%clk 00:07:16]} {[%emt 00:01:16]} 18. Ndxb6
{[%clk 00:05:12]} {[%emt 00:00:30]} axb6 {[%clk 00:07:11]} {[%emt 00:00:07]} 19.
Nd2 {[%clk 00:05:01]} {[%emt 00:00:14]} c5 {[%clk 00:07:02]} {[%emt 00:00:12]}
20. f3 {[%clk 00:05:02]} {[%emt 00:00:03]} h6 {[%clk 00:05:37]} {[%emt
00:01:28]} 21. Rad1 {[%clk 00:05:03]} {[%emt 00:00:02]} Ra8 {[%clk 00:05:02]}
{[%emt 00:00:38]} 22. a3 {[%clk 00:05:04]} {[%emt 00:00:02]} Re8 {[%clk
00:04:18]} {[%emt 00:00:47]} 23. Nf1 {[%clk 00:05:02]} {[%emt 00:00:04]} Re6
{[%clk 00:04:08]} {[%emt 00:00:13]} 24. Rd8+ {[%clk 00:03:37]} {[%emt
00:01:29]} Kh7 {[%clk 00:04:10]} 25. Red1 {[%clk 00:03:03]} {[%emt 00:00:38]}
f5 {[%clk 00:02:59]} {[%emt 00:01:14]} 26. exf5 {[%clk 00:02:14]} {[%emt
00:00:52]} Rxf5 {[%clk 00:02:59]} {[%emt 00:00:03]} 27. Rb8 {[%clk 00:02:01]}
{[%emt 00:00:15]} Bc6 {[%clk 00:02:35]} {[%emt 00:00:27]} 28. Kf2 {[%clk
00:01:45]} {[%emt 00:00:19]} Bb5 {[%clk 00:02:14]} {[%emt 00:00:22]} 29. Ng3
{[%clk 00:01:37]} {[%emt 00:00:13]} Rf7 {[%clk 00:01:56]} {[%emt 00:00:19]} 30.
Rdd8 {[%clk 00:01:31]} {[%emt 00:00:11]} Rd7 {[%clk 00:01:16]} {[%emt
00:00:43]} 31. Rxd7 {[%clk 00:01:31]} {[%emt 00:00:03]} Bxd7 {[%clk 00:01:18]}
{[%emt 00:00:01]} 32. Rd8 {[%clk 00:01:21]} {[%emt 00:00:13]} Bb5 {[%clk
00:01:03]} {[%emt 00:00:18]} 33. Ne4 {[%clk 00:00:59]} {[%emt 00:00:24]} Bc4
{[%clk 00:00:42]} {[%emt 00:00:25]} 34. Rd7 {[%clk 00:00:53]} {[%emt 00:00:09]}
c6 {[%clk 00:00:28]} {[%emt 00:00:17]} 35. Rd6 {[%clk 00:00:51]} {[%emt
00:00:05]} Rxd6 {[%clk 00:00:23]} {[%emt 00:00:08]} 36. Nxd6 {[%clk 00:00:53]}
{[%emt 00:00:01]} Bd5 {[%clk 00:00:24]} {[%emt 00:00:02]} 37. Ke3 {[%clk
00:00:47]} {[%emt 00:00:09]} Kg6 {[%clk 00:00:22]} {[%emt 00:00:05]} 38. Kf4
{[%clk 00:00:39]} {[%emt 00:00:11]} h5 {[%clk 00:00:23]} {[%emt 00:00:02]} 39.
Ne8 {[%clk 00:00:30]} {[%emt 00:00:12]} Bf7 {[%clk 00:00:18]} {[%emt 00:00:08]}
40. Nd6 {[%clk 00:00:31]} {[%emt 00:00:01]} b5 {[%clk 00:00:17]} {[%emt
00:00:04]} 41. Nxf7 {[%clk 00:00:33]} {[%emt 00:00:01]} Kxf7 {[%emt 00:00:02]}
42. Ke5 Ke7 {[%clk 00:00:15]} {[%emt 00:00:02]} 43. g4 {[%clk 00:00:31]} {[%emt
00:00:05]} hxg4 {[%clk 00:00:17]} {[%emt 00:00:02]} 44. hxg4 {[%clk 00:00:31]}
{[%emt 00:00:02]} Kf7 {[%clk 00:00:19]} {[%emt 00:00:01]} 45. Kd6 {[%clk
00:00:33]} {[%emt 00:00:01]} Kf6 {[%clk 00:00:16]} {[%emt 00:00:06]} 46. Kxc6
{[%clk 00:00:34]} {[%emt 00:00:02]} c4 {[%emt 00:00:04]} 47. Kxb5 {[%clk
00:00:34]} {[%emt 00:00:02]} 1-0

[Event "Jeux du Barreau 2019"]
[Site "Paris, France"]
[Date "2019.07.10"]
[Round "3.6"]
[White "Abulius, Thomas"]
[Black "Beaulier, Benjamin"]
[Result "1-0"]
[TimeControl "15+3"]
[WhiteElo "1390"]
[BlackElo "1658"]

1. d4 {[%clk 00:15:04]} {[%emt 00:00:02]} Nf6 {[%clk 00:15:04]} {[%emt
00:00:02]} 2. c4 {[%clk 00:15:05]} {[%emt 00:00:02]} e6 {[%clk 00:15:06]} 3.
Nf3 {[%clk 00:15:06]} {[%emt 00:00:02]} d5 {[%clk 00:15:07]} {[%emt 00:00:02]}
4. Bf4 {[%clk 00:15:06]} {[%emt 00:00:02]} Bd6 {[%clk 00:15:04]} {[%emt
00:00:07]} 5. Bg3 {[%clk 00:14:25]} {[%emt 00:00:45]} c5 {[%clk 00:14:43]}
{[%emt 00:00:23]} 6. e3 {[%clk 00:14:24]} {[%emt 00:00:04]} Nc6 {[%clk
00:13:57]} {[%emt 00:00:50]} 7. Nc3 {[%clk 00:14:26]} {[%emt 00:00:01]} O-O
{[%clk 00:13:38]} {[%emt 00:00:21]} 8. Bxd6 {[%clk 00:13:29]} {[%emt 00:01:00]}
Qxd6 {[%clk 00:13:39]} {[%emt 00:00:02]} 9. Nb5 {[%clk 00:13:27]} {[%emt
00:00:05]} Qe7 {[%clk 00:12:46]} {[%emt 00:00:57]} 10. dxc5 {[%clk 00:12:50]}
{[%emt 00:00:40]} Qxc5 {[%clk 00:12:18]} {[%emt 00:00:31]} 11. Rc1 {[%clk
00:12:32]} {[%emt 00:00:21]} a6 {[%clk 00:11:18]} {[%emt 00:01:03]} 12. cxd5
{[%clk 00:12:04]} {[%emt 00:00:30]} Qb4+ {[%clk 00:11:18]} {[%emt 00:00:03]} 13.
Nc3 {[%clk 00:11:51]} {[%emt 00:00:17]} Nxd5 {[%clk 00:11:17]} {[%emt
00:00:05]} 14. Qd2 {[%clk 00:10:55]} {[%emt 00:00:59]} Rd8 {[%clk 00:10:16]}
{[%emt 00:01:03]} 15. Nxd5 {[%clk 00:10:48]} {[%emt 00:00:09]} Rxd5 {[%clk
00:10:01]} {[%emt 00:00:19]} 16. Qxb4 {[%clk 00:10:45]} {[%emt 00:00:07]} Nxb4
{[%clk 00:10:02]} {[%emt 00:00:02]} 17. Bc4 {[%clk 00:10:04]} {[%emt 00:00:43]}
Rc5 {[%clk 00:09:28]} {[%emt 00:00:37]} 18. Ke2 {[%clk 00:10:00]} {[%emt
00:00:07]} Bd7 {[%clk 00:09:01]} {[%emt 00:00:31]} 19. Rhd1 {[%clk 00:09:38]}
{[%emt 00:00:25]} Bc6 {[%clk 00:06:47]} {[%emt 00:02:17]} 20. a3 {[%clk
00:09:19]} {[%emt 00:00:22]} Bxf3+ {[%clk 00:05:36]} {[%emt 00:01:13]} 21. Kxf3
{[%clk 00:08:16]} {[%emt 00:01:05]} Nc6 {[%clk 00:05:10]} {[%emt 00:00:30]} 22.
Ke2 {[%clk 00:06:41]} {[%emt 00:01:38]} Ne5 {[%clk 00:05:02]} {[%emt 00:00:11]}
23. Ba2 {[%clk 00:05:48]} {[%emt 00:00:56]} Rxc1 {[%clk 00:03:50]} {[%emt
00:01:15]} 24. Rxc1 {[%clk 00:05:50]} {[%emt 00:00:01]} Nc6 {[%clk 00:03:48]}
{[%emt 00:00:04]} 25. Bb1 {[%clk 00:05:38]} {[%emt 00:00:15]} Rd8 {[%clk
00:03:28]} {[%emt 00:00:23]} 26. Be4 {[%clk 00:05:28]} {[%emt 00:00:13]} Rd6
{[%clk 00:03:25]} {[%emt 00:00:06]} 27. Bxc6 {[%clk 00:05:23]} {[%emt
00:00:08]} Rxc6 {[%clk 00:03:19]} {[%emt 00:00:10]} 28. Rxc6 {[%clk 00:05:23]}
{[%emt 00:00:02]} bxc6 {[%clk 00:03:21]} {[%emt 00:00:01]} 29. Kd3 {[%clk
00:05:24]} {[%emt 00:00:02]} Kf8 {[%clk 00:03:14]} {[%emt 00:00:10]} 30. Kc4
{[%clk 00:05:25]} {[%emt 00:00:02]} Ke7 {[%clk 00:03:14]} {[%emt 00:00:03]} 31.
Kc5 {[%clk 00:05:19]} {[%emt 00:00:09]} Kd7 {[%clk 00:03:13]} {[%emt 00:00:04]}
32. Kb6 {[%clk 00:05:16]} {[%emt 00:00:06]} Kd6 {[%clk 00:02:43]} {[%emt
00:00:34]} 33. Kxa6 {[%clk 00:05:15]} {[%emt 00:00:05]} Kc5 {[%clk 00:02:44]}
{[%emt 00:00:02]} 34. Ka5 {[%clk 00:05:15]} {[%emt 00:00:02]} f5 {[%clk
00:02:18]} {[%emt 00:00:29]} 35. b4 {[%clk 00:05:09]} {[%emt 00:00:09]} Kd5
{[%clk 00:01:48]} {[%emt 00:00:33]} 36. Kb6 {[%clk 00:05:03]} {[%emt 00:00:08]}
g5 {[%clk 00:01:29]} {[%emt 00:00:23]} 37. a4 {[%clk 00:05:05]} {[%emt
00:00:02]} e5 {[%clk 00:01:26]} {[%emt 00:00:05]} 38. a5 {[%clk 00:05:07]} e4
{[%clk 00:01:19]} {[%emt 00:00:10]} 39. a6 {[%clk 00:05:09]} {[%emt 00:00:01]}
f4 {[%clk 00:01:19]} {[%emt 00:00:03]} 40. a7 {[%clk 00:05:11]} {[%emt
00:00:01]} 1-0

[Event "Jeux du Barreau 2019"]
[Site "Paris, France"]
[Date "2019.07.10"]
[Round "3.7"]
[White "Lepetit, Jean Pierre"]
[Black "Sainson, Michael"]
[Result "0-1"]
[TimeControl "15+3"]
[WhiteElo "1078"]
[BlackElo "1584"]

1. e4 {[%emt 00:00:01]} e5 2. Nf3 {[%clk 00:15:05]} {[%emt 00:00:02]} Nc6
{[%clk 00:15:08]} 3. Bb5 {[%clk 00:15:07]} {[%emt 00:00:01]} a6 {[%clk
00:15:10]} {[%emt 00:00:01]} 4. Ba4 {[%clk 00:15:08]} {[%emt 00:00:01]} Nf6
{[%clk 00:15:12]} {[%emt 00:00:01]} 5. O-O {[%clk 00:15:08]} {[%emt 00:00:02]}
b5 {[%clk 00:15:15]} 6. Bb3 {[%emt 00:00:04]} Be7 7. c3 {[%clk 00:14:58]}
{[%emt 00:00:14]} d6 {[%clk 00:15:02]} {[%emt 00:00:16]} 8. Re1 {[%clk
00:14:59]} {[%emt 00:00:02]} Bg4 {[%clk 00:15:03]} {[%emt 00:00:03]} 9. h3
{[%clk 00:14:54]} {[%emt 00:00:08]} Bh5 {[%clk 00:15:03]} {[%emt 00:00:02]} 10.
d3 {[%clk 00:14:39]} {[%emt 00:00:18]} O-O {[%clk 00:14:59]} {[%emt 00:00:08]}
11. Nbd2 {[%clk 00:14:39]} {[%emt 00:00:02]} Na5 {[%clk 00:14:29]} {[%emt
00:00:33]} 12. Bc2 {[%clk 00:14:40]} {[%emt 00:00:02]} c5 {[%emt 00:00:23]} 13.
Re3 {[%clk 00:13:56]} {[%emt 00:00:45]} h6 {[%clk 00:13:55]} {[%emt 00:00:18]}
14. Qe1 {[%clk 00:13:52]} {[%emt 00:00:07]} Nh7 {[%clk 00:12:45]} {[%emt
00:01:13]} 15. Nf1 {[%clk 00:13:43]} {[%emt 00:00:13]} Ng5 {[%clk 00:12:26]}
{[%emt 00:00:23]} 16. Nh4 {[%clk 00:13:24]} {[%emt 00:00:22]} Nxe4 {[%clk
00:12:03]} {[%emt 00:00:25]} 17. dxe4 {[%clk 00:12:41]} {[%emt 00:00:47]} Bxh4
{[%clk 00:12:03]} {[%emt 00:00:03]} 18. Ng3 {[%clk 00:12:23]} {[%emt 00:00:21]}
Bg6 {[%clk 00:10:57]} {[%emt 00:01:09]} 19. Nf5 {[%clk 00:12:07]} {[%emt
00:00:18]} Bxf5 {[%clk 00:10:37]} {[%emt 00:00:23]} 20. exf5 {[%clk 00:12:07]}
{[%emt 00:00:04]} Bg5 {[%clk 00:10:09]} {[%emt 00:00:31]} 21. Rg3 {[%clk
00:11:48]} {[%emt 00:00:22]} Bxc1 {[%clk 00:10:08]} {[%emt 00:00:04]} 22. Rxc1
{[%clk 00:11:39]} {[%emt 00:00:11]} Nc4 {[%clk 00:09:02]} {[%emt 00:01:10]} 23.
Rd1 {[%clk 00:10:15]} {[%emt 00:01:27]} Nxb2 {[%clk 00:08:49]} {[%emt
00:00:16]} 24. Rd2 {[%clk 00:09:16]} {[%emt 00:01:03]} Nc4 {[%clk 00:08:45]}
{[%emt 00:00:07]} 25. Rdd3 {[%clk 00:09:05]} {[%emt 00:00:14]} Na3 {[%clk
00:08:21]} {[%emt 00:00:26]} 26. Bd1 {[%clk 00:08:46]} {[%emt 00:00:22]} Nc4
{[%clk 00:07:50]} {[%emt 00:00:35]} 27. Qe4 {[%clk 00:08:17]} {[%emt 00:00:32]}
Qf6 {[%clk 00:06:53]} {[%emt 00:01:01]} 28. Bh5 {[%clk 00:07:27]} {[%emt
00:00:52]} Rfd8 {[%clk 00:05:45]} {[%emt 00:01:11]} 29. Qd5 {[%clk 00:07:13]}
{[%emt 00:00:17]} Qxf5 {[%clk 00:03:58]} {[%emt 00:01:50]} 30. Bg6 {[%clk
00:06:02]} {[%emt 00:01:14]} Qe6 {[%clk 00:03:39]} {[%emt 00:00:22]} 31. Qf3
{[%clk 00:04:51]} {[%emt 00:01:14]} fxg6 {[%clk 00:03:34]} {[%emt 00:00:07]} 32.
Qe4 {[%clk 00:04:30]} {[%emt 00:00:24]} Qf5 {[%clk 00:03:15]} {[%emt 00:00:22]}
33. Qxf5 {[%clk 00:04:18]} {[%emt 00:00:15]} gxf5 {[%clk 00:03:17]} {[%emt
00:00:01]} 34. Rg6 {[%clk 00:04:16]} {[%emt 00:00:05]} f4 {[%clk 00:02:52]}
{[%emt 00:00:28]} 35. g3 {[%emt 00:00:38]} Rf8 36. gxf4 {[%clk 00:03:57]}
{[%emt 00:00:04]} exf4 {[%clk 00:02:28]} {[%emt 00:00:13]} 37. Rd5 {[%clk
00:03:55]} {[%emt 00:00:05]} Rf6 {[%clk 00:02:23]} {[%emt 00:00:08]} 38. Rxf6
{[%clk 00:03:49]} {[%emt 00:00:09]} gxf6 {[%clk 00:02:25]} {[%emt 00:00:01]} 39.
Kg2 {[%clk 00:03:50]} {[%emt 00:00:01]} Kg7 {[%clk 00:02:19]} {[%emt 00:00:09]}
40. Kf3 {[%clk 00:03:50]} {[%emt 00:00:03]} Re8 {[%clk 00:02:14]} {[%emt
00:00:08]} 41. Kxf4 {[%clk 00:03:43]} {[%emt 00:00:10]} Re2 {[%clk 00:02:13]}
{[%emt 00:00:03]} 42. Kf3 {[%clk 00:03:32]} {[%emt 00:00:15]} Rxa2 {[%clk
00:02:10]} {[%emt 00:00:05]} 43. h4 {[%clk 00:03:34]} {[%emt 00:00:01]} Rc2
{[%clk 00:02:08]} {[%emt 00:00:05]} 44. Rd3 {[%clk 00:03:17]} {[%emt 00:00:20]}
Ne5+ {[%clk 00:02:08]} {[%emt 00:00:03]} 0-1

[Event "Jeux du Barreau 2019"]
[Site "Paris, France"]
[Date "2019.07.10"]
[Round "3.8"]
[White "Levy, David"]
[Black "Delage, Pierre Luc"]
[Result "1-0"]
[TimeControl "15+3"]
[WhiteElo "1511"]
[BlackElo "1399"]

1. d4 {[%clk 00:15:02]} {[%emt 00:00:03]} d5 {[%clk 00:15:03]} {[%emt
00:00:03]} 2. c4 {[%clk 00:15:01]} {[%emt 00:00:04]} e6 {[%clk 00:15:01]}
{[%emt 00:00:04]} 3. Nc3 {[%clk 00:15:02]} {[%emt 00:00:03]} Nf6 {[%clk
00:15:01]} {[%emt 00:00:03]} 4. Nf3 {[%clk 00:15:04]} {[%emt 00:00:01]} Nc6
{[%clk 00:14:49]} {[%emt 00:00:15]} 5. Bg5 {[%clk 00:15:05]} {[%emt 00:00:02]}
Be7 {[%clk 00:14:48]} {[%emt 00:00:03]} 6. e3 {[%clk 00:15:07]} {[%emt
00:00:02]} O-O {[%clk 00:14:45]} {[%emt 00:00:06]} 7. Bd3 {[%clk 00:15:09]}
{[%emt 00:00:01]} Nh5 {[%clk 00:13:37]} {[%emt 00:01:11]} 8. Bxe7 {[%clk
00:14:57]} {[%emt 00:00:15]} Qxe7 {[%clk 00:13:31]} {[%emt 00:00:09]} 9. cxd5
{[%clk 00:14:42]} {[%emt 00:00:19]} exd5 {[%clk 00:13:07]} {[%emt 00:00:26]} 10.
Nxd5 {[%clk 00:14:34]} {[%emt 00:00:11]} Qd6 {[%clk 00:11:51]} {[%emt
00:01:19]} 11. Nc3 {[%clk 00:14:24]} {[%emt 00:00:13]} Nf6 {[%clk 00:11:14]}
{[%emt 00:00:41]} 12. O-O {[%clk 00:14:20]} {[%emt 00:00:08]} Bg4 {[%clk
00:10:41]} {[%emt 00:00:36]} 13. Be2 {[%clk 00:14:22]} {[%emt 00:00:01]} Bf5
{[%clk 00:10:24]} {[%emt 00:00:18]} 14. a3 {[%clk 00:14:10]} {[%emt 00:00:15]}
Ne4 {[%clk 00:10:20]} {[%emt 00:00:07]} 15. Nxe4 {[%clk 00:13:46]} {[%emt
00:00:28]} Bxe4 {[%clk 00:10:19]} {[%emt 00:00:03]} 16. Bd3 {[%clk 00:13:48]}
{[%emt 00:00:02]} Qg6 {[%clk 00:09:48]} {[%emt 00:00:33]} 17. Bxe4 {[%clk
00:13:48]} {[%emt 00:00:04]} Qxe4 {[%clk 00:09:48]} {[%emt 00:00:03]} 18. Rc1
{[%clk 00:13:34]} {[%emt 00:00:17]} Rad8 {[%clk 00:09:23]} {[%emt 00:00:28]} 19.
Qc2 {[%clk 00:13:34]} {[%emt 00:00:03]} Qg4 {[%clk 00:07:39]} {[%emt 00:01:47]}
20. h3 {[%clk 00:13:20]} {[%emt 00:00:17]} Qh5 {[%clk 00:07:18]} {[%emt
00:00:24]} 21. Qc5 {[%clk 00:13:11]} {[%emt 00:00:13]} Rd5 {[%clk 00:06:08]}
{[%emt 00:01:12]} 22. Qc4 {[%clk 00:12:52]} {[%emt 00:00:21]} Rfd8 {[%clk
00:05:52]} {[%emt 00:00:19]} 23. Rfd1 {[%clk 00:12:16]} {[%emt 00:00:41]} Qf5
{[%clk 00:05:25]} {[%emt 00:00:30]} 24. Qd3 {[%emt 00:01:46]} Qh5 {[%clk
00:04:52]} {[%emt 00:00:36]} 25. Rc3 {[%clk 00:10:20]} {[%emt 00:00:15]} Qf5
{[%clk 00:04:14]} {[%emt 00:00:42]} 26. Qxf5 {[%clk 00:10:18]} {[%emt
00:00:05]} Rxf5 {[%clk 00:04:14]} {[%emt 00:00:02]} 27. Rdc1 {[%clk 00:10:21]}
{[%emt 00:00:02]} h6 {[%clk 00:03:49]} {[%emt 00:00:28]} 28. Rc5 {[%clk
00:10:00]} {[%emt 00:00:23]} Rxc5 {[%clk 00:03:27]} {[%emt 00:00:25]} 29. Rxc5
{[%clk 00:10:01]} {[%emt 00:00:02]} Rc8 {[%clk 00:03:01]} {[%emt 00:00:29]} 30.
Kf1 {[%clk 00:09:55]} {[%emt 00:00:09]} Ne7 {[%clk 00:02:57]} {[%emt 00:00:07]}
31. Ke2 {[%clk 00:09:06]} {[%emt 00:00:53]} c6 {[%clk 00:02:56]} {[%emt
00:00:04]} 32. e4 {[%clk 00:09:04]} {[%emt 00:00:04]} Ng6 {[%clk 00:02:48]}
{[%emt 00:00:13]} 33. g3 {[%clk 00:09:06]} {[%emt 00:00:02]} Rd8 {[%clk
00:02:42]} {[%emt 00:00:09]} 34. Ke3 {[%clk 00:09:04]} {[%emt 00:00:05]} Ne7
{[%clk 00:02:38]} {[%emt 00:00:06]} 35. Ne5 {[%clk 00:07:49]} {[%emt 00:01:16]}
f6 {[%clk 00:02:28]} {[%emt 00:00:15]} 36. Nd3 {[%clk 00:07:43]} {[%emt
00:00:09]} Kf7 {[%clk 00:02:30]} {[%emt 00:00:02]} 37. Nb4 {[%clk 00:07:11]}
{[%emt 00:00:34]} g6 {[%clk 00:02:09]} {[%emt 00:00:23]} 38. a4 {[%emt
00:00:42]} f5 {[%clk 00:02:03]} {[%emt 00:00:06]} 39. f3 {[%clk 00:06:36]}
{[%emt 00:00:03]} fxe4 {[%clk 00:01:58]} {[%emt 00:00:08]} 40. fxe4 {[%clk
00:06:38]} {[%emt 00:00:01]} Re8 {[%clk 00:01:51]} {[%emt 00:00:10]} 41. g4
{[%clk 00:05:55]} {[%emt 00:00:46]} Kg7 {[%clk 00:01:22]} {[%emt 00:00:32]} 42.
a5 {[%clk 00:05:50]} {[%emt 00:00:07]} Kf7 {[%clk 00:01:15]} {[%emt 00:00:10]}
43. Kd3 {[%clk 00:04:03]} {[%emt 00:01:51]} b6 {[%clk 00:01:14]} {[%emt
00:00:03]} 44. axb6 {[%clk 00:04:04]} {[%emt 00:00:02]} axb6 {[%clk 00:01:15]}
{[%emt 00:00:02]} 45. Rc2 {[%clk 00:04:05]} {[%emt 00:00:01]} Rc8 {[%clk
00:01:12]} {[%emt 00:00:06]} 46. Ke3 {[%clk 00:03:52]} {[%emt 00:00:17]} Ke6
{[%clk 00:01:12]} {[%emt 00:00:04]} 47. d5+ {[%clk 00:02:45]} {[%emt 00:01:09]}
cxd5 {[%clk 00:01:03]} {[%emt 00:00:12]} 48. Rxc8 {[%clk 00:02:47]} {[%emt
00:00:02]} Nxc8 {[%clk 00:01:03]} {[%emt 00:00:02]} 49. Nxd5 {[%clk 00:02:48]}
{[%emt 00:00:02]} Ke5 {[%clk 00:01:03]} {[%emt 00:00:03]} 50. b3 {[%clk
00:02:44]} {[%emt 00:00:07]} b5 {[%clk 00:01:00]} {[%emt 00:00:06]} 51. Nc3
{[%clk 00:02:40]} {[%emt 00:00:07]} b4 {[%clk 00:00:55]} {[%emt 00:00:08]} 52.
Nd5 {[%clk 00:02:37]} {[%emt 00:00:04]} Nd6 {[%clk 00:00:47]} {[%emt 00:00:15]}
53. Nxb4 {[%clk 00:02:39]} {[%emt 00:00:01]} Nb5 {[%clk 00:00:46]} {[%emt
00:00:03]} 54. Nd3+ {[%clk 00:02:37]} {[%emt 00:00:06]} Kd6 {[%clk 00:00:43]}
{[%emt 00:00:16]} 55. b4 {[%clk 00:02:23]} {[%emt 00:00:13]} Kc6 {[%clk
00:00:42]} {[%emt 00:00:04]} 56. Ne5+ {[%clk 00:02:23]} {[%emt 00:00:03]} Kb6
{[%clk 00:00:43]} {[%emt 00:00:02]} 57. Nxg6 {[%clk 00:02:25]} Nd6 {[%clk
00:00:40]} {[%emt 00:00:06]} 58. e5 {[%clk 00:02:20]} {[%emt 00:00:09]} Nc4+
{[%clk 00:00:41]} {[%emt 00:00:02]} 59. Kd4 {[%clk 00:02:22]} {[%emt 00:00:01]}
Nxe5 {[%clk 00:00:34]} {[%emt 00:00:10]} 60. Nxe5 {[%clk 00:02:22]} {[%emt
00:00:03]} Kb5 {[%clk 00:00:35]} {[%emt 00:00:02]} 61. Nd3 {[%clk 00:02:23]}
{[%emt 00:00:02]} Kc6 {[%clk 00:00:36]} {[%emt 00:00:02]} 62. Ke5 {[%clk
00:02:25]} {[%emt 00:00:01]} Kb5 {[%clk 00:00:36]} {[%emt 00:00:03]} 63. Kf6
{[%clk 00:02:27]} {[%emt 00:00:01]} Kc6 {[%clk 00:00:36]} {[%emt 00:00:02]} 64.
Kg6 {[%clk 00:02:29]} {[%emt 00:00:01]} Kd6 {[%clk 00:00:37]} {[%emt 00:00:02]}
65. Kxh6 {[%clk 00:02:31]} {[%emt 00:00:01]} Ke6 {[%clk 00:00:38]} {[%emt
00:00:01]} 66. g5 {[%clk 00:02:34]} {[%emt 00:00:01]} Kf7 {[%clk 00:00:40]} 67.
b5 {[%clk 00:02:36]} {[%emt 00:00:01]} Ke7 {[%clk 00:00:40]} {[%emt 00:00:02]}
68. b6 {[%clk 00:02:37]} {[%emt 00:00:04]} Kd7 {[%clk 00:00:35]} {[%emt
00:00:08]} 69. g6 {[%clk 00:02:40]} Ke7 {[%clk 00:00:35]} {[%emt 00:00:03]} 70.
b7 {[%clk 00:02:42]} Kd7 {[%clk 00:00:34]} {[%emt 00:00:03]} 71. b8=Q {[%clk
00:02:39]} {[%emt 00:00:06]} Ke7 {[%clk 00:00:35]} {[%emt 00:00:01]} 72. Qe5+
{[%clk 00:02:38]} {[%emt 00:00:05]} Kd7 {[%clk 00:00:36]} {[%emt 00:00:02]} 73.
Nc5+ {[%clk 00:02:40]} {[%emt 00:00:02]} Kd8 {[%clk 00:00:36]} {[%emt
00:00:03]} 74. Qg7 {[%clk 00:02:38]} {[%emt 00:00:04]} Kc8 {[%clk 00:00:37]}
{[%emt 00:00:02]} 75. Qd7+ {[%clk 00:02:39]} {[%emt 00:00:02]} Kb8 {[%clk
00:00:38]} {[%emt 00:00:01]} 76. Qb7# {[%emt 00:00:01]} 1-0